fUSD/lending_fUSD_20250628
["ID","MTS","AMOUNT","RATE_DAILY","PERIOD"]
[368237687,1751069439970,-12585.02713449,0.00044089,3]
[368237955,1751069442696,-500.0,0.00043734,2]
[368237956,1751069442705,-331.3411284,0.00043734,31]
[368238232,1751069445439,-168.6588716,0.00043734,31]
[368238234,1751069445448,-500.0,0.00043734,31]
[368238236,1751069445458,-383.40162848,0.00043734,15]
[368238238,1751069445467,-500.0,0.00043734,31]
[368238240,1751069445476,-314.00818862,0.00043734,2]
[368238242,1751069445485,-409.86540967,0.00043734,31]
[368238244,1751069445494,-500.0,0.00043734,31]
[368238245,1751069445503,-327.78590163,0.00043734,31]
[368238248,1751069445514,-172.21409837,0.00043734,31]
[368238250,1751069445524,-500.0,0.00043734,31]
[368238252,1751069445533,-150.0,0.00043734,31]
[368238254,1751069445542,-500.0,0.00043734,31]
[368238256,1751069445551,-500.0,0.00043734,31]
[368238258,1751069445561,-500.0,0.00043734,31]
[368238260,1751069445570,-500.0,0.00043734,31]
[368238262,1751069445579,-500.0,0.00043734,31]
[368238264,1751069445588,-500.0,0.00043734,31]
[368238266,1751069445597,-500.0,0.00043734,31]
[368238268,1751069445606,-500.0,0.00043734,31]
[368238270,1751069445615,-500.0,0.00043734,31]
[368238272,1751069445624,-500.0,0.00043734,31]
[368238274,1751069445634,-2594.35,0.00043835,60]
[368238275,1751069445644,-148.37477323,0.00043835,60]
[368240796,1751070491705,155.9,0.00013699,2]
[368240821,1751070637608,-2380.62105482,0.0002,2]
[368240822,1751070637619,-56755.43439344,0.0002,2]
[368240823,1751070637629,-500.0,0.00026998,2]
[368240824,1751070637639,-500.0,0.00026998,2]
[368240825,1751070637649,-500.0,0.00026998,2]
[368240826,1751070637660,-500.0,0.00026998,2]
[368240827,1751070637669,-500.0,0.00026998,2]
[368240828,1751070637679,-500.0,0.00026998,2]
[368240829,1751070637687,-500.0,0.00026998,2]
[368240830,1751070637697,-500.0,0.00026998,2]
[368240831,1751070637706,-500.0,0.00026998,2]
[368240832,1751070637715,-500.0,0.00026998,2]
[368240833,1751070637724,-252.94600861,0.00026998,2]
[368240834,1751070637733,-500.0,0.00026998,2]
[368240835,1751070637742,-500.0,0.00026998,2]
[368240836,1751070637751,-500.0,0.00026998,2]
[368240837,1751070637761,-500.0,0.00026998,2]
[368240838,1751070637770,-500.0,0.00026998,2]
[368240839,1751070637779,-500.0,0.00026998,2]
[368240840,1751070637789,-500.0,0.00026998,2]
[368240841,1751070637798,-500.0,0.00026998,2]
[368240842,1751070637807,-500.0,0.00026998,2]
[368240843,1751070637817,-767.0,0.00026999,2]
[368240844,1751070637826,-11200.84235772,0.00027,3]
[368240845,1751070637837,-8113.30231727,0.00027,3]
[368240846,1751070637849,-687.5949285,0.00027,3]
[368240847,1751070637872,-7906.01765501,0.00027,3]
[368240848,1751070637883,-2290.6884,0.00027,3]
[368240849,1751070637902,-2517.8,0.00027,3]
[368240864,1751070639686,-822.5251916,0.00027,3]
[368240865,1751070639698,-741.5666055,0.00027,3]
[368240866,1751070639902,-480.71349133,0.00027,3]
[368240867,1751070639915,-46395.75298464,0.00027,3]
[368240868,1751070639924,-30475.85269535,0.000298,2]
[368240869,1751070639933,-489.999999,0.0003121,2]
[368240870,1751070639943,-12500.0,0.00033574,5]
[368240871,1751070639953,-1007.05496407,0.00036,14]
[368240872,1751070639962,-500.0,0.00037123,2]
[368240873,1751070639971,-1500.0,0.000382,26]
[368240874,1751070639981,-10662.74076839,0.00038433,3]
[368240875,1751070639990,-14929.72643967,0.00038433,3]
[368240876,1751070639999,-500.0,0.0004,60]
[368240877,1751070640009,-204.0,0.0004008,10]
[368240878,1751070640018,-168.0,0.00040231,2]
[368240879,1751070640027,-152.0,0.00040973,3]
[368240880,1751070640038,-2001.0,0.00041554,120]
[368240881,1751070640048,-170.16,0.00041757,2]
[368240882,1751070640057,-318.95,0.00041766,2]
[368240883,1751070640067,-1000.0,0.00041788,2]
[368240884,1751070640076,-706.48,0.00042234,2]
[368240885,1751070640086,-706.48,0.00042245,2]
[368240886,1751070640096,-706.48,0.00042257,2]
[368240887,1751070640106,-319.99,0.00042267,2]
[368240888,1751070640116,-706.48,0.00042268,2]
[368240889,1751070640126,-706.48,0.00042279,2]
[368240890,1751070640135,-706.48,0.0004229,2]
[368240891,1751070640145,-706.48,0.00042301,2]
[368240892,1751070640155,-706.48,0.00042312,2]
[368240893,1751070640164,-706.48,0.00042323,2]
[368240894,1751070640173,-706.48,0.00042334,2]
[368240895,1751070640183,-706.48,0.00042345,2]
[368240896,1751070640193,-706.48,0.00042357,2]
[368240897,1751070640203,-706.48,0.00042368,2]
[368240898,1751070640213,-706.48,0.00042379,2]
[368240899,1751070640224,-706.48,0.0004239,2]
[368240900,1751070640234,-706.48,0.00042401,2]
[368240901,1751070640244,-8564.50339044,0.0004241,15]
[368240902,1751070640254,-706.48,0.00042412,2]
[368240903,1751070640264,-706.48,0.00042423,2]
[368240904,1751070640275,-706.48,0.00042434,2]
[368240905,1751070640285,-706.48,0.00042446,2]
[368240906,1751070640294,-150.08,0.00042493,2]
[368240907,1751070640304,-258.28,0.000425,2]
[368240908,1751070640313,-23900.0,0.0004251,2]
[368240909,1751070640323,-3049.77337696,0.0004251,2]
[368240910,1751070640577,-1559.88751789,0.0004251,2]
[368240911,1751070640590,-934.33642149,0.0004251,2]
[368240912,1751070640601,-419.77238971,0.0004251,2]
[368240913,1751070640612,-4036.22029395,0.0004251,2]
[368240914,1751070640622,-1484.81,0.0004251,2]
[368240915,1751070640631,-8888.87226949,0.0004251,2]
[368240916,1751070640650,-1111.11773051,0.0004251,2]
[368240917,1751070640660,-499.99,0.0004251,2]
[368240918,1751070640670,-150.99,0.0004251,30]
[368240919,1751070640679,-299.53,0.0004251,2]
[368240920,1751070640688,-778.85,0.0004251,2]
[368240921,1751070640698,-491.09,0.0004251,30]
[368240922,1751070640707,-409.1,0.0004251,20]
[368240923,1751070640717,-150.99,0.0004251,2]
[368240924,1751070640727,-999.99,0.0004251,2]
[368240925,1751070640736,-6857.86,0.0004251,2]
[368240926,1751070640746,-666.0,0.0004261,2]
[368240927,1751070640756,-170.27,0.00042633,120]
[368240928,1751070640766,-150.0,0.00042708,2]
[368240929,1751070640775,-8564.50339042,0.00042864,15]
[368240930,1751070640785,-1792.05741555,0.00042901,2]
[368240931,1751070640794,-2841.0900413,0.00042911,2]
[368240932,1751070640814,-9513.59511552,0.00042911,2]
[368240933,1751070640824,-250.0,0.00042968,2]
[368240934,1751070640833,-150.0,0.00043,120]
[368240935,1751070640842,-1000.0,0.00043,120]
[368240936,1751070640851,-1000.0,0.00043,120]
[368240937,1751070640861,-1000.0,0.00043,120]
[368240938,1751070640870,-1241.05902475,0.00043,120]
[368240939,1751070640879,-5500.0,0.00043,30]
[368240940,1751070640889,-164.39,0.00043003,2]
[368240941,1751070640898,-1300.0,0.00043192,2]
[368240942,1751070640908,-150.0,0.00043193,2]
[368240943,1751070640917,-2731.95610588,0.000432,120]
[368240944,1751070640926,-150.0,0.00043307,2]
[368240945,1751070640935,-8564.50339042,0.00043318,15]
[368240946,1751070640944,-150.0,0.000434,2]
[368240947,1751070640953,-150.0,0.00043428,2]
[368240948,1751070640962,-200.0,0.00043498,10]
[368240949,1751070640971,-200.0,0.00043561,10]
[368240950,1751070640981,-200.0,0.00043567,10]
[368240951,1751070640990,-799.04087722,0.00043612,2]
[368240952,1751070640999,-200.0,0.00043635,10]
[368240953,1751070641008,-200.0,0.00043668,10]
[368240954,1751070641018,-200.0,0.00043669,10]
[368240955,1751070641026,-150.0,0.000437,2]
[368240956,1751070641036,-151.0,0.00043712,2]
[368240957,1751070641045,-200.0,0.00043717,10]
[368240958,1751070641054,-8393.51658177,0.00043724,15]
[368240959,1751070641063,-315.18459294,0.00043725,28]
[368240960,1751070641072,-150.0,0.00043732,2]
[368240961,1751070641082,-187.87285716,0.00043734,31]
[368240962,1751070641090,-590.29814029,0.00043734,31]
[368240963,1751070641100,-200.93352881,0.00043734,31]
[368240964,1751070641109,-500.0,0.00043734,31]
[368240965,1751070641118,-500.0,0.00043734,31]
[368240966,1751070641127,-500.0,0.00043734,31]
[368240967,1751070641136,-500.0,0.00043734,31]
[368240968,1751070641146,-500.0,0.00043734,31]
[368240969,1751070641155,-500.0,0.00043734,31]
[368240970,1751070641165,-500.0,0.00043734,31]
[368240971,1751070641174,-500.0,0.00043734,31]
[368240972,1751070641183,-432.33259237,0.00043734,31]
[368240973,1751070641195,-67.66740763,0.00043734,31]
[368240974,1751070641204,-500.0,0.00043734,31]
[368240975,1751070641214,-12.61450197,0.00043734,31]
[368240976,1751070641225,-487.38549803,0.00043734,31]
[368240977,1751070641235,-2049.0282708,0.00043735,16]
[368240978,1751070641244,-157.1072258,0.00043735,20]
[368240979,1751070641253,-11363.80887877,0.00043735,2]
[368240986,1751070642759,-150.0,0.0004281,2]
[368240987,1751070642769,-150.0,0.00043375,2]
[368240988,1751070642779,-4876.43454404,0.00043735,2]
[368240989,1751070642790,-761.46346993,0.00043735,2]
[368240990,1751070642871,-150.0,0.00043302,2]
[368240991,1751070642881,-722.86425838,0.00043735,2]
[368240992,1751070642892,-1148.87274888,0.00043735,2]
[368240993,1751070642901,-29.74791124,0.00043735,2]
[368240994,1751070642913,-2446.76698876,0.00043735,2]
[368240995,1751070642923,-9490.17496055,0.00043739,2]
[368240996,1751070642934,-682.07017237,0.00043739,2]
[368240997,1751070642981,-26323.43205473,0.00043739,2]
[368240998,1751070642990,-200.0,0.00043753,10]
[368240999,1751070643000,-8564.50339042,0.00043772,15]
[368241000,1751070643009,-150.0,0.00043797,2]
[368241001,1751070643018,-150.0,0.00043825,2]
[368241002,1751070643027,-20926.7538399,0.00043825,3]
[368241003,1751070643038,-258.28,0.00043825,2]
[368241004,1751070643047,-4481.74662516,0.00043835,24]
[368241005,1751070643057,-490.0,0.00043835,60]
[368241006,1751070643066,-490.0,0.00043835,60]
[368241007,1751070643075,-492.79990739,0.00043835,60]
[368241008,1751070643085,-491.342466,0.00043835,60]
[368241009,1751070643094,-490.0,0.00043835,60]
[368241010,1751070643103,-490.0,0.00043835,60]
[368241011,1751070643113,-317.16348464,0.00043835,60]
[368241012,1751070643122,-20000.0,0.00043835,31]
[368241013,1751070643131,-239.05,0.00043835,60]
[368241014,1751070643140,-490.0,0.00043835,60]
[368241015,1751070643150,-490.0,0.00043835,60]
[368241017,1751070643160,-490.0,0.00043835,60]
[368241019,1751070643169,-618.87358543,0.00043835,60]
[368241021,1751070643178,-490.0,0.00043835,60]
[368241023,1751070643187,-450.35586847,0.00043835,60]
[368241025,1751070643197,-490.0,0.00043835,60]
[368241027,1751070643206,-490.0,0.00043835,60]
[368241029,1751070643216,-490.0,0.00043835,60]
[368241031,1751070643225,-490.0,0.00043835,60]
[368241032,1751070643234,-490.0,0.00043835,60]
[368241034,1751070643243,-490.0,0.00043835,60]
[368241036,1751070643254,-490.0,0.00043835,60]
[368241038,1751070643264,-490.0,0.00043835,60]
[368241039,1751070643274,-490.0,0.00043835,60]
[368241040,1751070643283,-490.0,0.00043835,60]
[368241041,1751070643292,-491.47632428,0.00043835,60]
[368241042,1751070643301,-490.0,0.00043835,60]
[368241043,1751070643311,-490.0,0.00043835,60]
[368241044,1751070643321,-490.0,0.00043835,60]
[368241045,1751070643332,-490.0,0.00043835,60]
[368241046,1751070643341,-490.0,0.00043835,60]
[368241047,1751070643351,-490.0,0.00043835,60]
[368241048,1751070643361,-490.0,0.00043835,60]
[368241049,1751070643371,-490.0,0.00043835,60]
[368241050,1751070643380,-490.0,0.00043835,60]
[368241051,1751070643390,-490.0,0.00043835,60]
[368241052,1751070643399,-490.0,0.00043835,60]
[368241053,1751070643409,-490.0,0.00043835,60]
[368241054,1751070643419,-490.0,0.00043835,60]
[368241055,1751070643428,-490.62423279,0.00043835,60]
[368241056,1751070643438,-490.0,0.00043835,60]
[368241057,1751070643448,-490.0,0.00043835,60]
[368241058,1751070643457,-490.0,0.00043835,60]
[368241059,1751070643467,-490.0,0.00043835,60]
[368241060,1751070643476,-594.99174828,0.00043835,60]
[368241061,1751070643488,-490.0,0.00043835,60]
[368241062,1751070643498,-490.0,0.00043835,60]
[368241063,1751070643507,-490.0,0.00043835,60]
[368241064,1751070643517,-491.202136,0.00043835,60]
[368241065,1751070643526,-490.0,0.00043835,60]
[368241066,1751070643536,-490.0,0.00043835,60]
[368241067,1751070643545,-490.0,0.00043835,60]
[368241068,1751070643555,-490.0,0.00043835,60]
[368241069,1751070643564,-490.0,0.00043835,60]
[368241070,1751070643574,-490.0,0.00043835,60]
[368241071,1751070643583,-490.0,0.00043835,60]
[368241072,1751070643593,-490.0,0.00043835,60]
[368241073,1751070643603,-490.0,0.00043835,60]
[368241074,1751070643612,-490.0,0.00043835,60]
[368241075,1751070643621,-490.0,0.00043835,60]
[368241076,1751070643631,-490.0,0.00043835,60]
[368241077,1751070643639,-490.0,0.00043835,60]
[368241078,1751070643649,-490.0,0.00043835,60]
[368241079,1751070643658,-490.0,0.00043835,60]
[368241080,1751070643668,-490.0,0.00043835,60]
[368241081,1751070643677,-490.0,0.00043835,60]
[368241082,1751070643686,-490.0,0.00043835,60]
[368241083,1751070643695,-490.0,0.00043835,60]
[368241084,1751070643704,-490.0,0.00043835,60]
[368241085,1751070643713,-490.0,0.00043835,60]
[368241086,1751070643722,-490.0,0.00043835,60]
[368241087,1751070643731,-490.0,0.00043835,60]
[368241088,1751070643740,-490.0,0.00043835,60]
[368241089,1751070643750,-490.0,0.00043835,60]
[368241090,1751070643759,-490.0,0.00043835,60]
[368241091,1751070643768,-490.0,0.00043835,60]
[368241092,1751070643777,-490.0,0.00043835,60]
[368241093,1751070643786,-564.13613915,0.00043835,60]
[368241094,1751070643795,-490.0,0.00043835,60]
[368241095,1751070643805,-490.0,0.00043835,60]
[368241096,1751070643814,-490.0,0.00043835,60]
[368241097,1751070643824,-490.0,0.00043835,60]
[368241098,1751070643833,-490.0,0.00043835,60]
[368241099,1751070643842,-510.0,0.00043835,60]
[368241100,1751070643851,-490.0,0.00043835,60]
[368241101,1751070643861,-490.0,0.00043835,60]
[368241102,1751070643870,-490.0,0.00043835,60]
[368241103,1751070643879,-490.0,0.00043835,60]
[368241104,1751070643888,-490.0,0.00043835,60]
[368241105,1751070643898,-490.0,0.00043835,60]
[368241106,1751070643907,-490.0,0.00043835,60]
[368241107,1751070643918,-490.0,0.00043835,60]
[368241108,1751070643928,-490.0,0.00043835,60]
[368241109,1751070643939,-490.0,0.00043835,60]
[368241110,1751070643949,-490.0,0.00043835,60]
[368241111,1751070643959,-490.0,0.00043835,60]
[368241112,1751070643968,-490.0,0.00043835,60]
[368241113,1751070643977,-490.0,0.00043835,30]
[368241114,1751070643987,-490.0,0.00043835,60]
[368241115,1751070643996,-490.0,0.00043835,60]
[368241116,1751070644005,-490.0,0.00043835,60]
[368241117,1751070644014,-490.0,0.00043835,60]
[368241118,1751070644023,-490.0,0.00043835,60]
[368241119,1751070644033,-490.0,0.00043835,60]
[368241120,1751070644043,-490.0,0.00043835,60]
[368241121,1751070644052,-490.0,0.00043835,60]
[368241122,1751070644062,-490.0,0.00043835,60]
[368241123,1751070644071,-521.0906515,0.00043835,60]
[368241124,1751070644080,-490.0,0.00043835,60]
[368241125,1751070644089,-490.0,0.00043835,60]
[368241126,1751070644099,-490.0,0.00043835,60]
[368241127,1751070644108,-490.0,0.00043835,60]
[368241128,1751070644117,-490.0,0.00043835,60]
[368241129,1751070644127,-490.0,0.00043835,60]
[368241130,1751070644136,-490.0,0.00043835,60]
[368241131,1751070644146,-490.0,0.00043835,60]
[368241132,1751070644156,-500.0,0.00043835,2]
[368241133,1751070644167,-500.0,0.00043835,60]
[368241134,1751070644177,-490.0,0.00043835,60]
[368241135,1751070644186,-490.0,0.00043835,60]
[368241136,1751070644197,-490.0,0.00043835,60]
[368241137,1751070644206,-490.0,0.00043835,60]
[368241138,1751070644215,-490.0,0.00043835,60]
[368241139,1751070644224,-510.0,0.00043835,60]
[368241140,1751070644233,-500.0,0.00043835,60]
[368241141,1751070644243,-490.0,0.00043835,60]
[368241142,1751070644253,-490.0,0.00043835,60]
[368241143,1751070644262,-490.0,0.00043835,60]
[368241144,1751070644272,-490.0,0.00043835,60]
[368241145,1751070644281,-490.0,0.00043835,60]
[368241146,1751070644290,-490.0,0.00043835,60]
[368241147,1751070644299,-490.0,0.00043835,60]
[368241148,1751070644309,-490.0,0.00043835,60]
[368241149,1751070644318,-490.0,0.00043835,60]
[368241150,1751070644328,-490.0,0.00043835,60]
[368241151,1751070644337,-490.0,0.00043835,60]
[368241152,1751070644346,-492.06575676,0.00043835,60]
[368241153,1751070644356,-490.0,0.00043835,60]
[368241154,1751070644366,-490.0,0.00043835,60]
[368241155,1751070644375,-490.0,0.00043835,60]
[368241156,1751070644384,-490.0,0.00043835,60]
[368241157,1751070644394,-490.0,0.00043835,60]
[368241158,1751070644403,-490.0,0.00043835,60]
[368241159,1751070644413,-490.0,0.00043835,60]
[368241160,1751070644423,-490.0,0.00043835,60]
[368241161,1751070644432,-490.0,0.00043835,60]
[368241162,1751070644441,-490.0,0.00043835,60]
[368241163,1751070644451,-490.0,0.00043835,60]
[368241164,1751070644460,-490.0,0.00043835,60]
[368241165,1751070644470,-490.0,0.00043835,60]
[368241166,1751070644479,-490.0,0.00043835,60]
[368241167,1751070644492,-490.0,0.00043835,60]
[368241168,1751070644502,-490.0,0.00043835,60]
[368241169,1751070644511,-490.0,0.00043835,60]
[368241170,1751070644520,-490.0,0.00043835,60]
[368241171,1751070644531,-490.0,0.00043835,60]
[368241172,1751070644540,-490.0,0.00043835,60]
[368241173,1751070644550,-490.0,0.00043835,60]
[368241174,1751070644561,-490.0,0.00043835,60]
[368241175,1751070644570,-490.0,0.00043835,60]
[368241176,1751070644579,-490.0,0.00043835,60]
[368241177,1751070644589,-490.0,0.00043835,60]
[368241178,1751070644598,-490.0,0.00043835,60]
[368241179,1751070644607,-490.0,0.00043835,60]
[368241180,1751070644617,-490.0,0.00043835,60]
[368241181,1751070644626,-490.0,0.00043835,60]
[368241182,1751070644635,-490.0,0.00043835,60]
[368241183,1751070644645,-490.0,0.00043835,60]
[368241184,1751070644654,-490.0,0.00043835,60]
[368241185,1751070644664,-490.0,0.00043835,60]
[368241186,1751070644673,-422.89672999,0.00043835,60]
[368241187,1751070644683,-490.0,0.00043835,60]
[368241188,1751070644692,-490.0,0.00043835,60]
[368241189,1751070644701,-490.0,0.00043835,60]
[368241190,1751070644710,-212.97450326,0.00043835,60]
[368241191,1751070644720,-490.0,0.00043835,60]
[368241192,1751070644729,-490.0,0.00043835,60]
[368241193,1751070644739,-490.0,0.00043835,60]
[368241194,1751070644748,-490.0,0.00043835,60]
[368241195,1751070644757,-490.0,0.00043835,60]
[368241196,1751070644766,-490.0,0.00043835,60]
[368241197,1751070644775,-490.0,0.00043835,60]
[368241198,1751070644785,-490.0,0.00043835,60]
[368241199,1751070644794,-1188.6,0.00043835,60]
[368241201,1751070644803,-490.0,0.00043835,60]
[368241203,1751070644812,-684.65,0.00043835,2]
[368241205,1751070644821,-490.0,0.00043835,60]
[368241207,1751070644831,-490.0,0.00043835,60]
[368241209,1751070644840,-490.0,0.00043835,60]
[368241211,1751070644849,-150.01841246,0.00043835,60]
[368241213,1751070644859,-490.0,0.00043835,60]
[368241215,1751070644869,-490.0,0.00043835,60]
[368241217,1751070644878,-490.0,0.00043835,60]
[368241219,1751070644887,-490.0,0.00043835,60]
[368241221,1751070644896,-490.0,0.00043835,60]
[368241223,1751070644905,-490.0,0.00043835,60]
[368241225,1751070644915,-490.0,0.00043835,60]
[368241227,1751070644924,-490.0,0.00043835,60]
[368241229,1751070644933,-490.0,0.00043835,60]
[368241230,1751070644943,-490.0,0.00043835,60]
[368241231,1751070644952,-523.38393579,0.00043835,60]
[368241232,1751070644961,-490.0,0.00043835,60]
[368241233,1751070644970,-490.0,0.00043835,60]
[368241234,1751070644979,-490.0,0.00043835,60]
[368241235,1751070644989,-490.0,0.00043835,60]
[368241236,1751070644998,-490.0,0.00043835,60]
[368241237,1751070645008,-472.36546582,0.00043835,60]
[368241238,1751070645018,-490.0,0.00043835,60]
[368241239,1751070645027,-490.0,0.00043835,60]
[368241240,1751070645037,-490.0,0.00043835,60]
[368241241,1751070645046,-490.0,0.00043835,60]
[368241242,1751070645055,-490.0,0.00043835,60]
[368241243,1751070645064,-490.0,0.00043835,60]
[368241244,1751070645074,-490.0,0.00043835,60]
[368241245,1751070645084,-490.0,0.00043835,60]
[368241246,1751070645093,-490.0,0.00043835,60]
[368241247,1751070645103,-490.0,0.00043835,60]
[368241249,1751070645113,-490.0,0.00043835,60]
[368241250,1751070645121,-490.0,0.00043835,60]
[368241252,1751070645131,-490.0,0.00043835,60]
[368241254,1751070645140,-490.0,0.00043835,60]
[368241256,1751070645149,-490.0,0.00043835,60]
[368241258,1751070645158,-490.0,0.00043835,60]
[368241260,1751070645168,-490.0,0.00043835,60]
[368241262,1751070645179,-500.0,0.00043835,60]
[368241264,1751070645189,-490.0,0.00043835,60]
[368241266,1751070645198,-490.0,0.00043835,60]
[368241268,1751070645207,-490.0,0.00043835,60]
[368241270,1751070645216,-490.0,0.00043835,60]
[368241272,1751070645225,-280.0,0.00043835,60]
[368241274,1751070645234,-490.0,0.00043835,60]
[368241276,1751070645243,-490.0,0.00043835,60]
[368241278,1751070645253,-490.0,0.00043835,60]
[368241280,1751070645262,-490.0,0.00043835,60]
[368241282,1751070645271,-490.0,0.00043835,60]
[368241284,1751070645280,-490.0,0.00043835,60]
[368241286,1751070645290,-490.0,0.00043835,60]
[368241288,1751070645299,-490.0,0.00043835,60]
[368241290,1751070645308,-490.0,0.00043835,60]
[368241292,1751070645317,-490.0,0.00043835,60]
[368241294,1751070645327,-490.0,0.00043835,60]
[368241296,1751070645336,-707.1,0.00043835,60]
[368241298,1751070645345,-500.0,0.00043835,60]
[368241300,1751070645355,-490.0,0.00043835,60]
[368241303,1751070645365,-490.0,0.00043835,60]
[368241305,1751070645374,-490.0,0.00043835,60]
[368241307,1751070645384,-255.82167803,0.00043835,60]
[368241309,1751070645393,-490.0,0.00043835,60]
[368241311,1751070645402,-261.78383269,0.00043835,60]
[368241313,1751070645411,-490.0,0.00043835,60]
[368241315,1751070645421,-490.0,0.00043835,60]
[368241317,1751070645429,-490.0,0.00043835,60]
[368241319,1751070645438,-490.0,0.00043835,60]
[368241321,1751070645448,-490.0,0.00043835,60]
[368241323,1751070645457,-490.0,0.00043835,60]
[368241324,1751070645466,-490.0,0.00043835,60]
[368241327,1751070645476,-490.0,0.00043835,60]
[368241329,1751070645488,-490.0,0.00043835,60]
[368241330,1751070645497,-490.0,0.00043835,60]
[368241332,1751070645507,-490.0,0.00043835,60]
[368241334,1751070645516,-294.95228732,0.00043835,60]
[368241336,1751070645525,-490.0,0.00043835,60]
[368241338,1751070645535,-490.0,0.00043835,60]
[368241341,1751070645545,-490.0,0.00043835,60]
[368241342,1751070645554,-490.0,0.00043835,60]
[368241345,1751070645564,-490.0,0.00043835,60]
[368241347,1751070645575,-490.0,0.00043835,60]
[368241349,1751070645584,-490.0,0.00043835,120]
[368241351,1751070645594,-490.0,0.00043835,60]
[368241353,1751070645603,-490.0,0.00043835,60]
[368241354,1751070645612,-490.0,0.00043835,60]
[368241356,1751070645622,-490.0,0.00043835,60]
[368241358,1751070645631,-490.0,0.00043835,60]
[368241359,1751070645640,-490.0,0.00043835,60]
[368241360,1751070645650,-490.0,0.00043835,60]
[368241361,1751070645659,-490.0,0.00043835,60]
[368241362,1751070645669,-490.0,0.00043835,60]
[368241363,1751070645678,-490.0,0.00043835,60]
[368241364,1751070645687,-490.0,0.00043835,60]
[368241365,1751070645696,-490.0,0.00043835,60]
[368241366,1751070645705,-490.0,0.00043835,60]
[368241367,1751070645715,-490.0,0.00043835,60]
[368241368,1751070645724,-490.0,0.00043835,60]
[368241369,1751070645733,-490.0,0.00043835,60]
[368241371,1751070645743,-490.0,0.00043835,60]
[368241372,1751070645752,-490.0,0.00043835,60]
[368241374,1751070645761,-490.0,0.00043835,60]
[368241376,1751070645770,-490.0,0.00043835,60]
[368241378,1751070645779,-490.0,0.00043835,60]
[368241380,1751070645789,-490.0,0.00043835,60]
[368241382,1751070645798,-490.0,0.00043835,60]
[368241384,1751070645807,-490.0,0.00043835,60]
[368241386,1751070645816,-490.0,0.00043835,60]
[368241388,1751070645825,-490.0,0.00043835,60]
[368241390,1751070645834,-490.0,0.00043835,60]
[368241392,1751070645843,-490.0,0.00043835,60]
[368241394,1751070645852,-490.0,0.00043835,60]
[368241396,1751070645861,-490.0,0.00043835,60]
[368241397,1751070645870,-490.0,0.00043835,60]
[368241399,1751070645879,-490.0,0.00043835,60]
[368241401,1751070645888,-490.0,0.00043835,60]
[368241420,1751070646057,-490.0,0.00043835,60]
[368241422,1751070646067,-490.0,0.00043835,60]
[368241424,1751070646076,-490.0,0.00043835,60]
[368241426,1751070646085,-490.0,0.00043835,60]
[368241428,1751070646094,-490.0,0.00043835,60]
[368241430,1751070646103,-490.0,0.00043835,60]
[368241432,1751070646112,-500.0,0.00043835,60]
[368241434,1751070646122,-490.0,0.00043835,30]